bitfinex-derivatives/quotes_SOLF0:USTF0_20250409
["timestamp","ask_amount","ask_price","bid_price","bid_amount"]
[1744178698232,39.66,105.75,105.69,19.37991646]
[1744178698430,9.464,105.74,105.7,9.43222073]
[1744178698635,9.464,105.74,105.71,9.43222073]
[1744178698835,9.464,105.74,105.72,9.43222073]
[1744178699040,9.464,105.74,105.71,9.4657]
[1744178699238,9.4644,105.73,105.72,9.45847245]
[1744178699440,9.4644,105.73,105.72,0.06893246]
[1744178700540,9.53545881,105.74,105.72,0.06893246]
[1744178700732,0.07155881,105.74,105.72,0.06893246]
[1744178701545,0.07155881,105.74,105.72,9.53383246]
[1744178701747,9.53525881,105.74,105.72,0.06893246]
[1744178702448,9.4644,105.73,105.72,0.06893246]
[1744178703747,9.53555881,105.74,105.72,0.06893246]
[1744178703941,0.07155881,105.74,105.72,19.44884892]
[1744178705351,0.07155881,105.74,105.72,0.06893246]
[1744178705937,0.07155881,105.74,105.73,9.4644]
[1744178706448,0.07155881,105.74,105.72,9.53383246]
[1744178707156,0.07155881,105.74,105.73,9.4644]
[1744178707351,39.66,105.78,105.72,59.10884892]
[1744178707550,4.588,105.8,105.72,59.10884892]
[1744178707747,2.3878,105.8,105.74,19.37991646]
[1744178708249,9.4604,105.78,105.75,9.4622]
[1744178708453,0.06017288,105.78,105.76,0.06861502]
[1744178708650,39.64,105.77,105.69,26.15881646]
[1744178708849,9.4631,105.75,105.69,26.15881646]
[1744178709151,39.64,105.77,105.71,19.37991646]
[1744178709742,0.06694563,105.75,105.73,0.06170682]
[1744178709947,0.06694563,105.75,105.73,19.44162328]
[1744178710256,42.0079,105.81,105.73,59.08162328]
[1744178710554,42.0079,105.81,105.73,59.01991646]
[1744178711255,0.06557185,105.78,105.76,0.06967125]
[1744178712247,9.4609,105.77,105.76,0.06967125]
[1744178712448,39.70557185,105.78,105.71,19.37991646]
[1744178712751,39.64,105.78,105.71,19.37991646]
[1744178713346,9.464,105.74,105.71,28.84571646]
[1744178713548,9.52799257,105.74,105.71,28.84571646]
[1744178713747,9.52799257,105.74,105.71,28.91650871]
[1744178714154,9.52799257,105.74,105.71,19.45070871]
[1744178714748,0.06399257,105.74,105.71,19.45070871]
[1744178715553,0.06399257,105.74,105.71,59.09070871]
[1744178716251,0.06399257,105.74,105.72,4.5668]
[1744178716651,0.06399257,105.74,105.72,14.0316]
[1744178717149,0.06399257,105.74,105.72,4.5668]
[1744178717354,0.06399257,105.74,105.71,59.09070871]
[1744178717751,0.06399257,105.74,105.71,68.55680871]
[1744178718052,0.06399257,105.74,105.71,39.71079225]
[1744178718255,9.4651,105.73,105.71,39.71079225]
[1744178718443,0.06399257,105.74,105.71,39.71079225]
[1744178718649,9.52799257,105.74,105.71,0.07079225]
[1744178718844,0.06399257,105.74,105.71,0.07079225]
[1744178719361,9.4653,105.72,105.71,0.07079225]
[1744178721957,9.4649,105.73,105.71,0.07079225]
[1744178722166,0.06399257,105.74,105.71,0.07079225]
[1744178724261,9.4653,105.72,105.71,0.07079225]
[1744178726459,9.4649,105.73,105.71,0.07079225]
[1744178726963,9.52829257,105.74,105.71,0.07079225]
[1744178727166,0.06399257,105.74,105.71,0.07079225]
[1744178727364,0.06399257,105.74,105.72,9.465]
[1744178727562,0.06399257,105.74,105.71,0.07079225]
[1744178727866,0.06399257,105.74,105.71,9.53659225]
[1744178728062,0.06399257,105.74,105.71,0.07079225]
[1744178728455,0.06399257,105.74,105.71,2.45819225]
[1744178728656,0.06399257,105.74,105.72,19.37991646]
[1744178728865,39.62,105.83,105.73,48.90624626]
[1744178729171,39.62,105.83,105.76,19.37991646]
[1744178729361,39.62,105.83,105.77,51.28831123]
[1744178729562,9.4577,105.81,105.78,9.4595]
[1744178729969,9.51902142,105.81,105.78,9.52527975]
[1744178730573,0.06132142,105.81,105.78,0.06577975]
[1744178731067,9.459,105.8,105.78,0.06577975]
[1744178731370,0.06132142,105.81,105.78,0.06577975]
[1744178731572,0.06132142,105.81,105.79,9.459]
[1744178732071,9.51862142,105.81,105.78,9.52527975]
[1744178732271,0.06132142,105.81,105.78,0.06577975]
[1744178732574,0.06132142,105.81,105.78,19.44569621]
[1744178732775,0.06132142,105.81,105.79,9.28707691]
[1744178732968,0.06132142,105.81,105.78,19.44569621]
[1744178733168,0.06132142,105.81,105.79,9.28759143]
[1744178733362,0.06132142,105.81,105.78,19.44569621]
[1744178733563,0.06132142,105.81,105.79,9.28624943]
[1744178733768,0.06132142,105.81,105.78,19.44569621]
[1744178733967,0.06132142,105.81,105.79,9.2865633]
[1744178734172,0.06132142,105.81,105.8,9.4582]
[1744178734378,0.06132142,105.81,105.78,19.44569621]
[1744178734575,0.06132142,105.81,105.79,18.75027852]
[1744178734876,0.06132142,105.81,105.79,9.4588]
[1744178735672,0.06132142,105.81,105.78,19.44569621]
[1744178735878,0.06132142,105.81,105.79,9.29645287]
[1744178736170,0.06132142,105.81,105.8,9.30490854]
[1744178736372,0.06132142,105.81,105.78,19.44569621]
[1744178736676,0.06132142,105.81,105.79,9.30295798]
[1744178736867,0.06132142,105.81,105.78,0.06577975]
[1744178737679,9.4591,105.79,105.78,0.06577975]
[1744178737875,0.06132142,105.81,105.78,0.06577975]
[1744178738084,9.4587,105.8,105.78,0.06577975]
[1744178738784,9.4591,105.79,105.78,0.06577975]
[1744178740089,39.6,105.8,105.74,39.6]
[1744178740090,9.462,105.76,105.74,39.6]
[1744178740288,9.462,105.76,105.75,9.34376841]
[1744178740587,9.4618,105.76,105.75,9.34376841]
[1744178740788,44.1195,105.8,105.75,9.34376841]
[1744178740987,44.1195,105.8,105.76,9.34376841]
[1744178741186,9.4614,105.77,105.74,9.4631]
[1744178741389,9.4614,105.77,105.75,9.34265587]
[1744178741589,9.4614,105.77,105.76,9.34801669]
[1744178741789,9.52290697,105.77,105.76,9.34801669]
[1744178742194,0.06150697,105.77,105.76,9.34801669]
[1744178742685,0.06150697,105.77,105.76,18.80981669]
[1744178742884,0.06150697,105.77,105.76,9.34801669]
[1744178743284,39.66150697,105.77,105.74,0.06371615]
[1744178743680,59.04142343,105.77,105.74,0.06371615]
[1744178743881,9.4626,105.75,105.74,0.06371615]
[1744178744490,59.04142343,105.77,105.69,23.78501646]
[1744178744795,19.37991646,105.75,105.68,39.6]
[1744178744992,39.6,105.74,105.68,39.6]
[1744178745292,9.4677,105.7,105.68,39.6]
[1744178745493,41.982,105.74,105.67,2.2765]
[1744178745790,9.4685,105.69,105.68,0.06944907]
[1744178748985,9.4703,105.67,105.62,24.01451646]
[1744178749191,9.4703,105.67,105.62,63.63451646]
[1744178749495,58.99991646,105.71,105.62,63.63451646]
[1744178749791,58.99991646,105.71,105.63,62.0]
[1744178750192,0.06020854,105.68,105.66,0.06193506]
[1744178750989,9.4703,105.67,105.66,0.06193506]
[1744178751193,0.06020854,105.68,105.66,0.06193506]
[1744178751794,9.52970854,105.68,105.66,0.06193506]
[1744178751994,0.06020854,105.68,105.66,0.06193506]
[1744178752999,9.4698,105.67,105.66,0.06193506]
[1744178753495,0.06020854,105.68,105.66,0.06193506]
[1744178755098,9.4698,105.67,105.66,0.06193506]
[1744178756700,9.52920854,105.68,105.66,0.06193506]
[1744178757697,0.06020854,105.68,105.66,0.06193506]
[1744178759200,9.4698,105.67,105.66,0.06193506]
[1744178759503,0.06020854,105.68,105.66,0.06193506]
[1744178759803,2.382,105.74,105.66,19.44185152]
[1744178760000,2.382,105.74,105.67,6.7261]
[1744178760405,9.4654,105.72,105.67,6.7261]
[1744178760599,2.382,105.74,105.67,6.7261]
[1744178760797,19.37991646,105.73,105.63,62.0]
[1744178760998,39.68283811,105.72,105.69,0.05998895]
[1744178761198,19.37991646,105.71,105.63,62.0]
[1744178761505,21.70741646,105.71,105.62,65.62411646]
[1744178761703,21.70741646,105.71,105.63,9.473]
[1744178761704,9.4708,105.66,105.63,9.473]
[1744178762194,39.62,105.68,105.6,19.37991646]
[1744178762403,39.62,105.68,105.54,519.09991646]
[1744178762404,9.4731,105.64,105.63,0.0723163]
[1744178762598,9.4731,105.64,105.58,26.00411646]
[1744178762793,9.4742,105.63,105.62,0.06666634]
[1744178763001,39.62,105.65,105.62,0.06666634]
[1744178763302,0.06391038,105.64,105.62,0.06666634]
[1744178764006,9.4734,105.63,105.62,0.06666634]
[1744178764201,0.06391038,105.64,105.62,0.06666634]
[1744178765004,0.06391038,105.64,105.62,9.54056634]
[1744178765304,0.06391038,105.64,105.62,0.06666634]
[1744178768002,9.4734,105.63,105.62,0.06666634]
[1744178768207,2.46971038,105.64,105.58,9.4774]
[1744178768506,2.4058,105.64,105.58,9.4774]
[1744178768709,9.475,105.62,105.59,9.4765]
[1744178768911,2.4058,105.64,105.56,121.01991646]
[1744178769304,9.54489043,105.61,105.59,0.06707145]
[1744178770814,0.06899043,105.61,105.6,9.4761]
[1744178771013,39.64,105.65,105.59,39.70707145]
[1744178771215,39.64,105.65,105.6,2.2474]
[1744178771414,39.64,105.65,105.6,26.06911646]
[1744178771611,39.64,105.68,105.6,26.06911646]
[1744178771814,39.64,105.68,105.6,6.6892]
[1744178772114,19.37991646,105.67,105.59,39.64]
[1744178772313,0.06045227,105.65,105.63,0.05970557]
[1744178772514,39.70045227,105.65,105.63,0.05970557]
[1744178772811,49.17245227,105.65,105.63,0.05970557]
[1744178773010,39.70045227,105.65,105.63,0.05970557]
[1744178773210,9.4725,105.64,105.63,0.05970557]
[1744178773410,39.70045227,105.65,105.63,0.05970557]
[1744178773706,9.53225227,105.65,105.63,0.05970557]
[1744178773918,0.06045227,105.65,105.63,0.05970557]
[1744178774116,4.7721,105.7,105.63,19.43962203]
[1744178774315,4.7721,105.7,105.62,101.64]
[1744178774316,39.64,105.73,105.68,9.4689]
[1744178774517,39.64,105.73,105.66,2.2043]
[1744178774818,39.64,105.73,105.68,9.4688]
[1744178775114,39.64,105.73,105.66,2.2043]
[1744178775417,9.4671,105.71,105.69,0.05984847]
[1744178775817,0.07111122,105.72,105.69,0.05984847]
[1744178776014,9.4671,105.7,105.69,0.05984847]
[1744178776217,39.64,105.7,105.65,39.64]
[1744178776416,39.64,105.7,105.63,2.3204]
[1744178776718,9.469,105.68,105.64,9.4721]
[1744178776918,9.469,105.68,105.63,2.3204]
[1744178777110,9.469,105.68,105.65,9.4712]
[1744178777420,0.07115639,105.67,105.64,0.06346578]
[1744178778222,0.07115639,105.67,105.65,9.4712]
[1744178778430,0.07115639,105.67,105.64,0.06346578]
[1744178778923,0.07115639,105.67,105.66,9.4707]
[1744178780725,0.07115639,105.67,105.65,49.1111]
[1744178780922,0.07115639,105.67,105.65,39.64]
[1744178781224,0.07115639,105.67,105.66,9.4707]
[1744178781528,9.4667,105.71,105.65,39.64]
[1744178781716,41.817,105.73,105.67,9.4693]
[1744178782117,41.817,105.73,105.65,39.64]
[1744178782625,0.06599334,105.7,105.68,0.06038849]
[1744178782927,0.06599334,105.7,105.69,9.468]
[1744178783123,0.06599334,105.7,105.68,0.06038849]
[1744178784420,0.06599334,105.7,105.69,9.468]
[1744178784924,39.62,105.73,105.7,9.4665]
[1744178785128,39.62,105.76,105.69,2.367]
[1744178785723,49.0822,105.76,105.73,9.464]
[1744178786126,49.15405986,105.76,105.73,9.52593264]
[1744178786324,49.15405986,105.76,105.74,9.4633]
[1744178786325,39.69185986,105.76,105.74,9.4633]
[1744178786536,0.07185986,105.76,105.73,0.06193264]
[1744178787329,0.07185986,105.76,105.75,9.4626]
[1744178789135,0.07185986,105.76,105.74,49.0633]
[1744178789731,9.53445986,105.76,105.74,39.6]
[1744178789925,9.53445986,105.76,105.73,0.06193264]
[1744178790231,9.4635,105.74,105.73,0.06193264]
[1744178794435,44.30805986,105.76,105.73,0.06193264]
[1744178795430,9.4635,105.74,105.73,0.06193264]
[1744178801034,41.94185986,105.76,105.73,0.06193264]
[1744178801240,39.67185986,105.76,105.73,0.06193264]
[1744178801551,49.13395986,105.76,105.73,9.52593264]
[1744178802353,9.53395986,105.76,105.74,9.4635]
[1744178802640,0.07185986,105.76,105.73,0.06193264]
[1744178802841,39.67185986,105.76,105.73,0.06193264]
[1744178803047,58.99844638,105.76,105.73,0.06193264]
[1744178803344,58.99844638,105.76,105.69,2.367]
[1744178803345,9.4658,105.72,105.69,9.4674]
[1744178803748,9.464,105.74,105.68,61.33448652]
[1744178804145,9.464,105.74,105.71,9.4658]
[1744178804347,0.06197443,105.72,105.71,9.4658]
[1744178809053,9.4662,105.71,105.7,0.06072174]
[1744178810659,9.52767443,105.72,105.7,0.06072174]
[1744178811157,9.52777443,105.72,105.7,0.06072174]
[1744178811759,0.06197443,105.72,105.7,0.06072174]
[1744178811951,9.52777443,105.72,105.7,0.06072174]
[1744178812154,0.06197443,105.72,105.64,49.0321]
[1744178812452,9.4716,105.65,105.62,39.56]
[1744178812852,39.56,105.69,105.62,39.56]
[1744178813154,41.8179,105.69,105.62,70.49236323]
[1744178813356,0.06248548,105.67,105.64,9.54007663]
[1744178813553,0.06248548,105.67,105.64,0.06807663]
[1744178814154,9.471,105.66,105.64,0.06807663]
[1744178815057,9.53278548,105.67,105.64,9.54057663]
[1744178815660,9.4707,105.66,105.64,9.54057663]
[1744178815863,9.4707,105.66,105.64,0.06807663]
[1744178817659,9.53268548,105.67,105.64,9.54057663]
[1744178818662,9.4708,105.66,105.64,9.54057663]
[1744178818859,9.4708,105.66,105.64,0.06807663]
[1744178819363,9.4708,105.66,105.64,9.54047663]
[1744178819559,9.4708,105.66,105.64,0.06807663]
[1744178819863,9.4708,105.66,105.64,9.54057663]
[1744178820062,9.53278548,105.67,105.64,9.54057663]
[1744178820662,9.471,105.66,105.64,0.06807663]
[1744178821061,39.58,105.66,105.64,0.06807663]
[1744178821357,9.4716,105.65,105.64,0.06807663]
[1744178823560,39.58,105.66,105.64,0.06807663]
[1744178823762,0.06248548,105.67,105.64,0.06807663]
[1744178823959,9.53268548,105.67,105.64,9.54017663]
[1744178824160,0.06248548,105.67,105.64,9.54017663]
[1744178824561,9.4707,105.66,105.64,0.06807663]
[1744178824765,0.06248548,105.67,105.64,0.06807663]
[1744178825165,9.4711,105.66,105.64,0.06807663]
[1744178825369,0.06248548,105.67,105.64,9.54057663]
[1744178825566,0.06248548,105.67,105.64,0.06807663]
[1744178825868,9.53278548,105.67,105.64,9.54017663]
[1744178826165,9.53278548,105.67,105.64,0.06807663]
[1744178826365,1.64733728,105.73,105.64,0.06807663]
[1744178826559,54.23968953,105.75,105.66,30.93236323]
[1744178826872,54.23968953,105.75,105.67,39.58]
[1744178827167,9.465,105.73,105.69,9.4676]
[1744178827364,2.2528,105.75,105.67,120.91917317]
[1744178827666,0.06738618,105.72,105.7,0.07032255]
[1744178828656,0.06738618,105.72,105.7,39.65032255]
[1744178828862,0.06738618,105.72,105.71,9.4662]
[1744178829062,52.57672238,105.77,105.7,39.65032255]
[1744178829270,12.99672238,105.77,105.71,30.91130467]
[1744178829876,12.99672238,105.77,105.76,9.4618]
[1744178830369,6.50995184,105.78,105.77,9.4609]
[1744178830569,6.50995184,105.78,105.75,0.06155321]
[1744178832469,6.50995184,105.78,105.75,9.52365321]
[1744178833169,15.97045184,105.78,105.75,0.06155321]
[1744178833768,6.50995184,105.78,105.75,9.52395321]
[1744178834263,6.50995184,105.78,105.75,0.06155321]
[1744178835370,6.50995184,105.78,105.76,9.4618]
[1744178835573,6.50995184,105.78,105.75,0.06155321]
[1744178835870,9.4609,105.77,105.75,0.06155321]
[1744178836069,6.50995184,105.78,105.75,0.06155321]
[1744178838170,6.50995184,105.78,105.77,9.4609]
[1744178838369,6.50995184,105.78,105.75,2.31825321]
[1744178838769,6.50995184,105.78,105.76,9.4614]
[1744178838970,6.50995184,105.78,105.75,2.31825321]
[1744178839673,6.50995184,105.78,105.77,9.4609]
[1744178840071,6.50995184,105.78,105.77,49.0209]
[1744178840275,39.56,105.83,105.79,9.4586]
[1744178840970,9.4565,105.82,105.79,9.4586]
[1744178841367,49.016,105.83,105.79,9.4586]
[1744178841567,0.06162917,105.82,105.8,9.458]
[1744178841770,0.06162917,105.82,105.8,39.52]
[1744178841980,0.06162917,105.82,105.81,9.4573]
[1744178842669,0.06162917,105.82,105.8,49.04487805]
[1744178844275,0.06162917,105.82,105.8,9.52487805]
[1744178844471,0.06162917,105.82,105.75,2.2567]
[1744178844472,39.58162917,105.82,105.7,39.52]
[1744178844779,2.218,105.81,105.71,99.88970467]
[1744178845378,9.4602,105.78,105.75,9.4624]
[1744178845678,0.06426688,105.78,105.75,0.06783321]
[1744178845975,9.52466688,105.78,105.75,9.52993321]
[1744178846481,9.52466688,105.78,105.75,0.06783321]
[1744178847379,0.06426688,105.78,105.76,39.52]
[1744178847676,2.4042,105.85,105.76,75.07680467]
[1744178847977,9.4517,105.88,105.82,30.91130467]
[1744178848164,2.3595,105.9,105.83,39.52]
[1744178848366,11.8091,105.9,105.86,9.4521]
[1744178848768,0.06616263,105.89,105.87,0.05953609]
[1744178848967,9.51636263,105.89,105.87,0.05953609]
[1744178849174,0.06616263,105.89,105.87,0.05953609]
[1744178849478,9.51666263,105.89,105.87,0.05953609]
[1744178849779,0.06616263,105.89,105.87,0.05953609]
[1744178850077,0.06616263,105.89,105.82,9.456]
[1744178850371,70.43130467,105.88,105.79,6.6503]
[1744178850565,70.43130467,105.88,105.76,70.43130467]
[1744178850566,2.3304,105.87,105.76,70.43130467]
[1744178850772,30.91130467,105.86,105.76,39.52]
[1744178850978,9.4568,105.82,105.77,30.91130467]
[1744178851277,0.06393422,105.82,105.8,0.0609644]
[1744178851680,0.06393422,105.82,105.75,4.4026]
[1744178851881,2.39433422,105.82,105.73,39.52]
[1744178852180,9.4598,105.79,105.75,9.4621]
[1744178852376,9.4598,105.79,105.73,39.52]
[1744178852677,39.52,105.81,105.74,30.91130467]
[1744178852873,0.06815122,105.77,105.75,0.06908918]
[1744178853369,0.06815122,105.77,105.76,9.4618]
[1744178853578,9.4586,105.8,105.76,39.52]
[1744178853977,9.4592,105.79,105.76,39.52]
[1744178854479,39.52,105.81,105.76,39.52]
[1744178854681,9.52354974,105.8,105.77,0.07073865]
[1744178854981,0.06494974,105.8,105.77,0.07073865]
[1744178855180,9.4593,105.79,105.77,0.07073865]
[1744178855479,0.06494974,105.8,105.77,0.07073865]
[1744178855877,9.52344974,105.8,105.77,9.53113865]
[1744178857679,0.06494974,105.8,105.78,9.4599]
[1744178858382,0.06494974,105.8,105.77,9.53113865]
[1744178859485,9.52314974,105.8,105.77,9.53113865]
[1744178861084,0.06494974,105.8,105.78,9.4595]
[1744178861483,0.06494974,105.8,105.77,0.07073865]
[1744178862690,0.06494974,105.8,105.79,9.4591]
[1744178862990,4.4183,105.85,105.79,39.52]
[1744178863785,70.41130467,105.84,105.75,2.3889]
[1744178864089,9.4591,105.79,105.78,0.07112322]
[1744178865391,9.4609,105.77,105.74,48.9631]
[1744178865692,9.4609,105.77,105.74,9.4631]
[1744178866194,9.4602,105.78,105.75,9.4626]
[1744178866592,0.06068168,105.76,105.75,9.4626]
[1744178870698,8.168e-05,105.76,105.75,9.4626]
[1744178875803,48.957,105.82,105.79,9.4584]
[1744178876904,6.8278,105.83,105.77,39.5]
[1744178877102,0.06251503,105.82,105.79,0.06189569]
[1744178879006,9.4573,105.81,105.79,0.06189569]
[1744178879206,0.06251503,105.82,105.79,0.06189569]
[1744178879602,9.4582,105.8,105.79,0.06189569]
[1744178881405,9.462,105.76,105.71,41.8047]
[1744178881905,9.4631,105.75,105.72,9.4649]
[1744178882403,9.4595,105.79,105.72,30.91130467]
[1744178882708,1.7e-06,105.75,105.72,30.97846548]
[1744178882908,39.5,105.8,105.78,9.4599]
[1744178883109,46.3278,105.83,105.74,70.41130467]
[1744178883509,46.3278,105.83,105.75,9.4623]
[1744178883708,46.3278,105.83,105.74,39.5]
[1744178884009,0.06741661,105.8,105.77,9.53244639]
[1744178884210,0.06741661,105.8,105.77,0.07214639]
[1744178884599,9.4605,105.78,105.7,62.0]
[1744178885102,14.014,105.78,105.7,62.0]
[1744178885302,9.4609,105.77,105.7,62.0]
[1744178885604,9.4609,105.77,105.71,39.5]
[1744178885809,0.06679491,105.75,105.73,9.464]
[1744178886107,0.06679491,105.75,105.72,0.06774176]
[1744178886699,9.4635,105.74,105.72,0.06774176]
[1744178886905,0.06679491,105.75,105.72,0.06774176]
[1744178887309,0.06679491,105.75,105.74,9.4635]
[1744178887812,0.06679491,105.75,105.72,0.06774176]
[1744178888017,0.06679491,105.75,105.74,9.4635]
[1744178888415,12.99672238,105.82,105.74,48.96]
[1744178888609,12.99672238,105.82,105.78,30.91130467]
[1744178888811,12.99672238,105.82,105.79,39.5]
[1744178889011,2.238e-05,105.82,105.8,30.91130467]
[1744178889214,142.96394622,105.83,105.81,62.0]
[1744178889517,143.02459538,105.83,105.82,48.9564]
[1744178889913,155.96066861,105.84,105.82,70.41130467]
[1744178890115,256.29894769,105.85,105.82,70.41130467]
[1744178890315,271.71599328,105.86,105.84,30.91130467]
[1744178890719,271.71599328,105.86,105.85,9.4537]
[1744178891224,229.81929328,105.86,105.85,48.9337]
[1744178891422,0.06508033,105.87,105.86,9.4528]
[1744178891626,8.033e-05,105.87,105.86,9.4528]
[1744178892518,8.033e-05,105.87,105.86,40.36410467]
[1744178892718,14.0239,105.93,105.89,9.4501]
[1744178892923,4.5771,105.93,105.88,39.48]
[1744178893225,4.5771,105.93,105.88,101.48]
[1744178893412,30.91130467,105.98,105.88,101.48]
[1744178893616,2.2447,105.96,105.88,132.39130467]
[1744178893817,2.2447,105.96,105.88,101.48]
[1744178894119,70.39130467,105.98,105.91,0.06634054]
[1744178894120,0.07119705,105.93,105.91,0.06634054]
[1744178894321,6.8165,106.0,105.92,39.48]
[1744178894525,6.8165,106.0,105.92,70.39130467]
[1744178894820,6.8165,106.0,105.92,39.48]
[1744178895524,9.4453,105.95,105.92,39.48]
[1744178895719,39.54216702,105.97,105.95,0.0720872]
[1744178895924,70.39130467,105.97,105.88,101.48]
[1744178896131,70.39130467,105.97,105.88,110.9308]
[1744178896132,9.4476,105.92,105.88,110.9308]
[1744178896425,39.46,105.94,105.88,48.9308]
[1744178896626,9.4467,105.93,105.89,9.4501]
[1744178897127,0.07216527,105.92,105.9,9.51607881]
[1744178897425,0.07216527,105.92,105.9,0.06747881]
[1744178897622,0.07216527,105.92,105.91,39.46]
[1744178897830,6.8165,106.0,105.91,39.46]
[1744178898022,6.8165,106.0,105.92,30.91130467]
[1744178898214,9.4382,106.03,105.98,9.4415]
[1744178898416,2.3686,106.05,105.97,39.46]
[1744178898821,11.8046,106.05,105.97,39.46]
[1744178899021,0.0623575,106.02,106.0,0.064072]
[1744178899932,9.5011575,106.02,106.0,0.064072]
[1744178900630,9.4394,106.01,105.97,39.46]
[1744178900826,0.0623575,106.02,105.97,9.4425]
[1744178901127,0.0623575,106.02,105.97,39.44]
[1744178901316,0.0623575,106.02,106.0,9.4398]
[1744178901520,0.0623575,106.02,106.0,39.44]
[1744178901816,0.0623575,106.02,106.0,39.50647235]
[1744178902828,0.0623575,106.02,106.0,48.94627235]
[1744178903031,0.0623575,106.02,106.0,0.06647235]
[1744178903527,90.36786849,106.04,105.98,40.36]
[1744178904335,9.44,106.01,105.97,9.4424]
[1744178904828,0.05974005,106.0,105.98,0.07034994]
[1744178905229,90.42760854,106.0,105.94,112.54658762]
[1744178905529,40.41974005,106.0,105.94,103.10148762]
[1744178905720,2.361,105.99,105.94,103.10148762]
[1744178905923,2.361,105.99,105.93,126.15198558]
[1744178906117,9.4426,105.98,105.93,126.15198558]
[1744178906332,0.06447885,105.97,105.95,0.07224612]
[1744178906731,0.06447885,105.97,105.93,126.15198558]
[1744178906927,40.42447885,105.97,105.93,126.15198558]
[1744178907132,9.4454,105.95,105.93,126.15198558]
[1744178907735,9.4457,105.94,105.93,126.15198558]
[1744178908031,40.36,105.97,105.93,0.06546925]
[1744178908233,0.07035184,105.95,105.93,0.06546925]
[1744178908729,0.07035184,105.95,105.94,9.4452]
[1744178909328,0.07035184,105.95,105.93,0.06546925]
[1744178909329,0.07035184,105.95,105.93,9.51166925]
[1744178909626,0.07035184,105.95,105.93,0.06546925]
[1744178909830,9.51525184,105.95,105.93,0.06546925]
[1744178910029,0.07035184,105.95,105.93,0.06546925]
[1744178910332,40.36,105.97,105.93,0.06546925]
[1744178911030,9.4444,105.96,105.93,0.06546925]
[1744178911334,40.36,105.97,105.93,0.06546925]
[1744178911535,42.721,105.99,105.93,9.51136925]
[1744178912035,2.2786,105.98,105.93,0.06546925]
[1744178912733,0.06096589,105.97,105.93,0.06546925]
[1744178913337,9.4446,105.96,105.93,0.06546925]
[1744178913934,9.445,105.95,105.93,0.06546925]
[1744178914133,40.36,105.96,105.88,166.51198558]
[1744178914435,9.448,105.92,105.88,166.51198558]
[1744178914635,40.36,105.93,105.91,103.10148762]
[1744178914933,28.22702747,105.93,105.91,103.10148762]
[1744178915137,37.67442747,105.93,105.91,103.10148762]
[1744178915339,37.74129283,105.93,105.91,103.16326381]
[1744178915640,37.74129283,105.93,105.91,0.06177619]
[1744178915825,0.06686536,105.93,105.91,0.06177619]
[1744178916133,0.06686536,105.93,105.91,40.42177619]
[1744178916940,0.06686536,105.93,105.91,49.86947619]
[1744178917233,0.06686536,105.93,105.91,40.42177619]
[1744178917437,0.06686536,105.93,105.91,49.86937619]
[1744178917842,0.06686536,105.93,105.91,40.42177619]
[1744178918035,0.06686536,105.93,105.91,49.86937619]
[1744178918338,0.06686536,105.93,105.91,40.42177619]
[1744178918838,0.06686536,105.93,105.92,9.4475]
[1744178920041,0.06686536,105.93,105.91,49.86967619]
[1744178920226,0.06686536,105.93,105.91,40.42177619]
[1744178920735,0.06686536,105.93,105.92,9.4475]
[1744178921537,49.8039,105.96,105.93,9.4462]
[1744178922137,40.36,105.96,105.94,9.4455]
[1744178922334,11.8502,105.97,105.94,9.4455]
[1744178922535,2.407,105.97,105.92,23.05049796]
[1744178922736,9.4439,105.96,105.94,0.06096518]
[1744178923635,11.91244212,105.97,105.94,9.50646518]
[1744178923840,2.46924212,105.97,105.94,0.06096518]
[1744178924834,9.4444,105.96,105.94,0.06096518]
[1744178925040,0.06224212,105.97,105.94,0.06096518]
[1744178925437,0.06224212,105.97,105.95,32.52838316]
[1744178926337,0.06224212,105.97,105.96,9.4439]
[1744178926929,0.06224212,105.97,105.96,88.01693373]
[1744178927133,11.6838,106.01,105.98,9.4421]
[1744178928244,2.3046609,106.01,105.98,0.06213743]
[1744178928444,4.7108609,106.01,105.96,336.3267528]
[1744178928744,9.4418,105.99,105.96,336.3267528]
[1744178929440,0.0624358,105.99,105.97,182.19377934]
[1744178931042,9.4428,105.98,105.97,182.19377934]
[1744178931231,0.0624358,105.99,105.96,0.06575751]
[1744178931542,9.5040358,105.99,105.96,9.50925751]
[1744178931946,0.0624358,105.99,105.96,0.06575751]